bitfinex/quotes_SOLUSD_20241125
["timestamp","ask_amount","ask_price","bid_price","bid_amount"]
[1732542553502,20.0,248.84,248.74,11.59611052]
[1732542553695,20.0,248.84,248.73,11.59611052]
[1732542553696,23.776884,248.83,248.73,11.59611052]
[1732542553878,23.776884,248.83,248.72,11.59611052]
[1732542554086,23.776884,248.81,248.72,11.59611052]
[1732542554898,23.776884,248.81,248.71,11.59611052]
[1732542555134,23.776884,248.81,248.7,11.59611052]
[1732542555493,23.776884,248.81,248.69,11.59611052]
[1732542556213,23.776884,248.79,248.7,11.59611052]
[1732542556594,20.0,248.76,248.67,11.59611052]
[1732542556790,23.776884,248.75,248.67,11.59611052]
[1732542557289,23.776884,248.75,248.66,11.59611052]
[1732542557486,23.776884,248.75,248.62,19.36855091]
[1732542557808,23.776884,248.75,248.68,11.59611052]
[1732542558299,2.0101,248.74,248.68,11.59611052]
[1732542558496,2.0101,248.74,248.67,11.59611052]
[1732542558902,2.0101,248.74,248.68,11.59611052]
[1732542559618,2.0101,248.74,248.63,0.60304172]
[1732542559817,2.0101,248.74,248.67,11.59611052]
[1732542559989,20.0,248.76,248.7,11.59611052]
[1732542560195,20.0,248.77,248.73,11.59611052]
[1732542560410,20.0,248.77,248.72,11.59611052]
[1732542560610,23.776884,248.78,248.74,11.59611052]
[1732542560807,23.776884,248.78,248.73,11.59611052]
[1732542561115,2.0098,248.77,248.73,11.59611052]
[1732542561897,2.0098,248.77,248.67,0.60293995]
[1732542562216,23.776884,248.76,248.68,11.59611052]
[1732542562518,23.776884,248.76,248.64,0.60295469]
[1732542562691,2.0098,248.77,248.71,11.59611052]
[1732542563114,2.01,248.75,248.7,11.59611052]
[1732542564199,2.01,248.75,248.68,11.59611052]
[1732542564401,2.01,248.75,248.67,11.59611052]
[1732542564905,2.01,248.75,248.68,11.59611052]
[1732542565103,23.776884,248.74,248.65,11.59611052]
[1732542565311,2.0102,248.73,248.66,11.59611052]
[1732542565517,2.0102,248.73,248.65,11.59611052]
[1732542565906,23.776884,248.71,248.59,11.59611052]
[1732542566217,23.776884,248.71,248.54,23.1119]
[1732542566218,23.776884,248.67,248.56,11.59611052]
[1732542567207,2.0107,248.66,248.57,11.59611052]
[1732542567404,23.776884,248.65,248.58,11.59611052]
[1732542569494,2.0109,248.64,248.57,11.59611052]
[1732542570517,2.0109,248.64,248.58,11.59611052]
[1732542571105,2.0109,248.64,248.59,11.59611052]
[1732542571307,2.0109,248.64,248.58,11.59611052]
[1732542572318,2.0106,248.67,248.58,11.59611052]
[1732542572523,23.776884,248.66,248.58,11.59611052]
[1732542573730,2.0108,248.65,248.61,11.59611052]
[1732542574024,23.776884,248.68,248.62,11.59611052]
[1732542574214,23.776884,248.68,248.61,11.59611052]
[1732542575017,2.0106,248.67,248.59,11.59611052]
[1732542575227,2.0106,248.67,248.6,11.59611052]
[1732542575530,2.0106,248.67,248.6,0.12549]
[1732542575531,23.776884,248.66,248.6,0.12549]
[1732542576105,23.776884,248.66,248.57,11.59611052]
[1732542576408,23.776884,248.66,248.58,0.12549]
[1732542577117,2.0108,248.65,248.58,0.12549]
[1732542578015,7.0379,248.65,248.54,11.59611052]
[1732542578220,7.0379,248.65,248.5,4.024]
[1732542578221,23.776884,248.64,248.55,11.59611052]
[1732542578425,23.776884,248.64,248.57,0.12549]
[1732542579134,2.011,248.63,248.56,0.12549]
[1732542579323,2.011,248.63,248.56,11.72160052]
[1732542579507,2.011,248.63,248.58,0.12549]
[1732542579837,2.011,248.63,248.58,11.72160052]
[1732542580404,2.011,248.63,248.58,0.12549]
[1732542582433,7.0385,248.63,248.55,11.59611052]
[1732542582933,23.776884,248.62,248.53,11.59611052]
[1732542583728,2.011,248.63,248.56,11.59611052]
[1732542583922,2.011,248.63,248.53,4.0236]
[1732542583923,2.0106,248.68,248.59,11.59611052]
[1732542584126,2.0106,248.68,248.57,11.59611052]
[1732542584533,20.0,248.65,248.57,11.59611052]
[1732542586028,2.0109,248.64,248.57,11.59611052]
[1732542586226,2.0109,248.64,248.59,11.59611052]
[1732542586435,2.0103,248.71,248.62,11.59611052]
[1732542586747,2.0103,248.71,248.67,11.59611052]
[1732542586911,2.0103,248.71,248.68,11.59611052]
[1732542587112,2.0103,248.71,248.67,11.59611052]
[1732542587313,2.0103,248.71,248.68,11.59611052]
[1732542587516,2.01,248.75,248.69,11.59611052]
[1732542587726,2.01,248.75,248.7,11.59611052]
[1732542587910,2.01,248.75,248.71,11.59611052]
[1732542588839,2.0098,248.77,248.71,11.59611052]
[1732542589039,2.0098,248.77,248.7,11.59611052]
[1732542589429,2.0098,248.77,248.71,11.59611052]
[1732542589916,22.0098,248.77,248.69,11.59611052]
[1732542590321,22.0098,248.77,248.71,11.59611052]
[1732542592016,2.0098,248.77,248.73,11.59611052]
[1732542592242,2.0098,248.77,248.75,11.59611052]
[1732542592623,2.0098,248.77,248.68,0.60287515]
[1732542592624,2.0098,248.77,248.73,11.59611052]
[1732542592824,2.0098,248.77,248.71,11.59611052]
[1732542593028,2.0098,248.77,248.69,11.59611052]
[1732542593232,7.0345,248.77,248.66,11.59611052]
[1732542593448,7.0345,248.77,248.67,11.59611052]
[1732542593951,7.0345,248.77,248.66,11.59611052]
[1732542594622,7.0345,248.77,248.67,11.59611052]
[1732542594823,20.0,248.73,248.63,11.59611052]
[1732542595031,36.3164,248.73,248.59,4.62569948]
[1732542595232,36.3164,248.73,248.63,11.59611052]
[1732542596852,2.0102,248.72,248.64,11.59611052]
[1732542597145,20.0,248.71,248.61,11.59611052]
[1732542598549,2.0104,248.7,248.62,11.59611052]
[1732542598722,2.0104,248.7,248.61,11.59611052]
[1732542599252,20.0,248.67,248.59,11.59611052]
[1732542599425,20.0,248.67,248.58,11.59611052]
[1732542599626,20.0,248.67,248.57,11.59611052]
[1732542599947,23.776884,248.66,248.54,11.59611052]
[1732542600247,20.0,248.63,248.54,11.59611052]
[1732542600553,23.776884,248.61,248.49,11.59611052]
[1732542601138,23.776884,248.61,248.5,11.59611052]
[1732542601658,23.776884,248.61,248.51,11.59611052]
[1732542601821,22.6452,248.62,248.53,11.59611052]
[1732542602025,23.776884,248.61,248.49,11.59611052]
[1732542602226,23.776884,248.61,248.5,11.59611052]
[1732542602724,2.0112,248.6,248.51,11.59611052]
[1732542603930,2.0112,248.6,248.52,11.59611052]
[1732542604930,2.0112,248.6,248.49,11.59611052]
[1732542605132,23.776884,248.59,248.46,11.59611052]
[1732542605440,23.776884,248.55,248.43,11.59611052]
[1732542605647,20.0,248.52,248.41,11.59611052]
[1732542606043,2.0119,248.51,248.41,11.59611052]
[1732542606242,20.0,248.46,248.3,14.0273]
[1732542606550,23.776884,248.45,248.34,11.59611052]
[1732542606749,23.776884,248.45,248.35,11.59611052]
[1732542606942,23.776884,248.45,248.34,11.59611052]
[1732542607145,23.776884,248.45,248.35,11.59611052]
[1732542607338,22.776884,248.45,248.35,11.59611052]
[1732542607845,2.0125,248.44,248.33,11.59611052]
[1732542608050,2.0125,248.44,248.25,31.944]
[1732542608051,20.0,248.41,248.31,11.59611052]
[1732542608446,20.0,248.41,248.34,11.59611052]
[1732542608853,7.0438,248.44,248.34,11.59611052]
[1732542609246,7.0438,248.44,248.35,11.59611052]
[1732542609644,20.0,248.42,248.35,11.59611052]
[1732542610171,2.0125,248.44,248.36,11.59611052]
[1732542610362,2.0125,248.44,248.38,11.59611052]
[1732542610660,2.0121,248.49,248.41,11.59611052]
[1732542610853,2.0121,248.49,248.43,11.59611052]
[1732542611057,15.2895,248.5,248.45,11.59611052]
[1732542611261,17.935,248.56,248.49,11.59611052]
[1732542612043,17.935,248.56,248.44,11.59611052]
[1732542612564,22.9639,248.56,248.44,11.59611052]
[1732542612762,23.776884,248.55,248.43,11.59611052]
[1732542612961,7.041,248.54,248.41,11.59611052]
[1732542613164,23.776884,248.53,248.41,11.59611052]
[1732542613341,20.0,248.5,248.4,11.59611052]
[1732542614065,20.0,248.5,248.41,11.59611052]
[1732542614443,2.0121,248.49,248.41,11.59611052]
[1732542614646,22.0118,248.53,248.45,11.59611052]
[1732542615051,22.0118,248.53,248.37,0.60355145]
[1732542615052,22.0118,248.53,248.46,11.59611052]
[1732542615364,2.0118,248.53,248.45,11.59611052]
[1732542616065,2.0116,248.55,248.46,11.59611052]
[1732542616455,20.0,248.52,248.43,11.59611052]
[1732542617471,2.0116,248.55,248.47,11.59611052]
[1732542617948,2.0116,248.55,248.48,11.59611052]
[1732542618350,2.0116,248.55,248.47,11.59611052]
[1732542619043,2.0116,248.55,248.48,11.59611052]
[1732542619355,16.1782,248.62,248.54,11.59611052]
[1732542619564,16.1782,248.62,248.55,11.59611052]
[1732542620454,18.1893,248.62,248.53,11.59611052]
[1732542620788,23.776884,248.57,248.42,33.77241052]
[1732542620945,23.776884,248.57,248.41,11.59611052]
[1732542621143,20.0,248.54,248.42,11.59611052]
[1732542621550,39.417284,248.53,248.39,11.59611052]
[1732542621756,23.776884,248.51,248.38,11.59611052]
[1732542622051,23.776884,248.51,248.37,11.59611052]
[1732542622465,2.012,248.5,248.37,11.59611052]
[1732542622851,2.012,248.5,248.41,11.59611052]
[1732542623073,2.012,248.5,248.43,11.59611052]
[1732542623455,2.012,248.5,248.44,11.59611052]
[1732542623664,2.012,248.5,248.43,11.59611052]
[1732542624545,2.012,248.5,248.42,11.59611052]
[1732542624751,2.012,248.5,248.41,11.59611052]
[1732542625165,2.012,248.5,248.42,11.59611052]
[1732542626349,2.012,248.5,248.43,11.59611052]
[1732542626756,2.012,248.5,248.42,11.59611052]
[1732542627166,2.012,248.5,248.4,11.59611052]
[1732542628588,2.012,248.5,248.37,11.59611052]
[1732542628783,20.0,248.46,248.35,11.59611052]
[1732542629273,2.012,248.5,248.39,11.59611052]
[1732542629977,2.012,248.5,248.4,11.59611052]
[1732542630209,2.012,248.5,248.45,11.59611052]
[1732542630577,2.012,248.5,248.42,11.59611052]
[1732542630777,2.012,248.5,248.41,11.59611052]
[1732542630977,2.012,248.5,248.42,11.59611052]
[1732542631359,2.012,248.5,248.43,11.59611052]
[1732542632596,2.012,248.5,248.42,11.59611052]
[1732542633090,2.012,248.5,248.4,11.59611052]
[1732542633466,2.012,248.5,248.41,11.59611052]
[1732542633977,2.0119,248.51,248.41,11.59611052]
[1732542634698,2.0119,248.51,248.43,11.59611052]
[1732542634984,5.0292,248.55,248.46,11.59611052]
[1732542635296,2.0117,248.55,248.49,11.59611052]
[1732542635464,2.0117,248.55,248.51,11.59611052]
[1732542635987,2.0114,248.58,248.53,11.59611052]
[1732542636362,15.3566,248.59,248.53,11.59611052]
[1732542636563,17.3679,248.59,248.51,11.59611052]
[1732542637487,17.3679,248.59,248.49,11.59611052]
[1732542638069,22.3962,248.59,248.47,11.59611052]
[1732542638270,22.3962,248.59,248.48,11.59611052]
[1732542638786,22.3962,248.59,248.49,11.59611052]
[1732542638987,22.3962,248.59,248.52,11.59611052]
[1732542639173,17.3679,248.59,248.53,11.59611052]
[1732542639372,17.3679,248.59,248.54,11.59611052]
[1732542639864,11.6493,248.64,248.56,11.59611052]
[1732542639865,2.011,248.63,248.56,11.59611052]
[1732542640066,2.011,248.63,248.58,11.59611052]
[1732542640292,2.011,248.63,248.57,11.59611052]
[1732542640492,2.011,248.63,248.56,11.59611052]
[1732542641388,2.011,248.63,248.59,11.59611052]
[1732542641689,2.0104,248.7,248.62,11.59611052]
[1732542641911,2.0104,248.7,248.66,11.59611052]
[1732542642188,2.0104,248.7,248.65,11.59611052]
[1732542642388,2.0104,248.7,248.64,11.59611052]
[1732542642700,2.0104,248.7,248.62,0.60311851]
[1732542642701,2.0104,248.7,248.62,11.59611052]
[1732542642997,2.0104,248.7,248.64,11.59611052]
[1732542643497,2.0104,248.7,248.56,20.0]
[1732542643672,7.0365,248.7,248.59,11.59611052]
[1732542643988,7.0365,248.7,248.6,11.59611052]
[1732542644189,7.0365,248.7,248.61,11.59611052]
[1732542644386,7.0365,248.7,248.58,11.59611052]
[1732542645293,20.0,248.66,248.54,11.59611052]
[1732542645499,20.0,248.66,248.56,11.59611052]
[1732542646091,20.0,248.66,248.53,11.59611052]
[1732542646796,20.0,248.62,248.53,11.59611052]
[1732542647090,2.0111,248.61,248.54,11.59611052]
[1732542647675,2.0111,248.61,248.55,11.59611052]
[1732542648598,2.0111,248.61,248.58,11.59611052]
[1732542648789,2.0111,248.61,248.57,11.59611052]
[1732542649699,20.0,248.67,248.57,11.59611052]
[1732542650007,23.776884,248.66,248.5,11.59611052]
[1732542650303,20.0,248.62,248.5,11.59611052]
[1732542650800,23.776884,248.6,248.48,11.59611052]
[1732542650981,20.0,248.57,248.46,11.59611052]
[1732542651182,20.0,248.57,248.49,11.59611052]
[1732542651510,16.148,248.61,248.51,11.59611052]
[1732542651798,2.0112,248.6,248.51,11.59611052]
[1732542652496,2.0112,248.6,248.51,18.62097017]
[1732542653097,2.0112,248.6,248.52,18.62097017]
[1732542653297,16.148,248.61,248.56,18.62097017]
[1732542653600,2.0111,248.62,248.58,18.62097017]
[1732542653999,2.0111,248.62,248.57,18.62097017]
[1732542654206,2.0111,248.62,248.58,18.62097017]
[1732542654379,2.0109,248.64,248.58,18.62097017]
[1732542654904,2.0109,248.64,248.59,18.62097017]
[1732542655085,2.0108,248.66,248.62,18.62097017]
[1732542655296,2.0108,248.66,248.63,18.62097017]
[1732542655504,15.5623,248.67,248.63,18.62097017]
[1732542655689,2.0102,248.72,248.66,18.62097017]
[1732542655887,2.0102,248.72,248.63,18.62097017]
[1732542656095,7.0359,248.72,248.62,18.62097017]
[1732542656397,7.0359,248.72,248.59,18.62097017]
[1732542656598,7.0359,248.72,248.6,18.62097017]
[1732542657008,23.776884,248.71,248.58,18.62097017]
[1732542657302,20.0,248.68,248.58,18.62097017]
[1732542657903,2.0106,248.67,248.58,18.62097017]
[1732542658494,2.0106,248.67,248.59,18.62097017]
[1732542659183,2.0106,248.67,248.61,18.62097017]
[1732542660248,5.0264,248.69,248.61,18.62097017]
[1732542660387,5.0264,248.69,248.58,18.62097017]
[1732542660788,5.0264,248.69,248.59,18.62097017]
[1732542661000,5.0264,248.69,248.61,18.62097017]
[1732542662200,5.0264,248.69,248.58,18.62097017]
[1732542662604,5.0264,248.69,248.55,18.62097017]
[1732542662605,6.5729,248.66,248.55,18.62097017]
[1732542662802,6.5729,248.66,248.56,18.62097017]
[1732542663912,6.5729,248.66,248.57,18.62097017]
[1732542663913,2.0108,248.65,248.57,18.62097017]
[1732542664087,2.0108,248.65,248.56,18.62097017]
[1732542664288,2.0108,248.65,248.54,18.62097017]
[1732542664609,2.0108,248.65,248.53,18.62097017]
[1732542664610,20.0,248.61,248.53,18.62097017]
[1732542664796,16.3271,248.64,248.53,18.62097017]
[1732542665002,16.3271,248.64,248.46,4.0247]
[1732542665203,20.0,248.6,248.51,18.62097017]
[1732542665509,23.776884,248.59,248.46,18.62097017]
[1732542665686,2.0116,248.55,248.47,18.62097017]
[1732542666415,2.0116,248.55,248.48,18.62097017]
[1732542666712,2.0116,248.55,248.49,18.62097017]
[1732542667303,16.3271,248.64,248.52,18.62097017]
[1732542667304,7.0386,248.63,248.52,18.62097017]
[1732542667504,7.0386,248.63,248.56,18.62097017]
[1732542667893,2.011,248.63,248.58,18.62097017]
[1732542668508,2.011,248.63,248.57,18.62097017]
[1732542668711,2.011,248.63,248.56,18.62097017]
[1732542669020,7.0385,248.63,248.54,18.62097017]
[1732542669214,7.0385,248.63,248.55,18.62097017]
[1732542669417,7.0385,248.63,248.56,18.62097017]
[1732542669915,7.0385,248.63,248.55,18.62097017]
[1732542670495,7.0385,248.63,248.56,18.62097017]
[1732542670913,7.0385,248.63,248.55,18.62097017]
[1732542671114,2.0109,248.65,248.61,18.62097017]
[1732542671507,2.0105,248.69,248.64,18.62097017]
[1732542671692,2.0105,248.69,248.65,18.62097017]
[1732542672094,2.0105,248.69,248.62,18.62097017]
[1732542672323,2.0105,248.69,248.64,11.62649983]
[1732542672694,2.0105,248.69,248.61,11.62649983]
[1732542672894,2.0105,248.69,248.6,11.62649983]
[1732542673100,7.0368,248.69,248.6,11.62649983]
[1732542673521,7.0368,248.69,248.57,11.62649983]
[1732542674204,7.0368,248.69,248.59,11.62649983]
[1732542674520,7.0368,248.69,248.61,11.62649983]
[1732542674732,2.0105,248.69,248.64,11.62649983]
[1732542674900,2.0105,248.69,248.65,11.62649983]
[1732542675720,2.0105,248.69,248.64,11.62649983]
[1732542677007,2.0105,248.7,248.68,11.62649983]
[1732542677202,2.0105,248.7,248.67,11.62649983]
[1732542677423,2.0105,248.7,248.65,11.62649983]
[1732542678031,5.0255,248.73,248.62,11.62649983]
[1732542678200,5.0255,248.73,248.58,4.0227]
[1732542678403,5.0255,248.73,248.61,11.62649983]
[1732542679315,5.0255,248.73,248.62,11.62649983]
[1732542679503,5.0255,248.73,248.63,11.62649983]
[1732542679700,5.0255,248.73,248.62,11.62649983]
[1732542680012,5.0255,248.73,248.63,11.62649983]
[1732542680212,2.01,248.75,248.67,11.62649983]
[1732542680410,2.01,248.75,248.7,11.62649983]
[1732542680605,2.01,248.75,248.64,11.62649983]
[1732542680606,2.01,248.75,248.71,11.62649983]
[1732542680805,2.01,248.75,248.69,11.62649983]
[1732542681001,2.01,248.75,248.61,23.776884]
[1732542681002,2.01,248.75,248.7,11.62649983]
[1732542681202,6.5295,248.79,248.72,11.62649983]
[1732542681421,2.0098,248.78,248.74,11.62649983]
[1732542681724,16.1022,248.88,248.77,11.62649983]
[1732542681903,2.009,248.87,248.79,11.62649983]
[1732542682103,2.009,248.87,248.74,11.62649983]
[1732542682303,2.009,248.87,248.71,18.58912487]
[1732542682304,17.0771,248.87,248.71,18.58912487]
[1732542682524,17.0771,248.87,248.69,18.58912487]
[1732542682911,43.776884,248.83,248.69,18.58912487]
[1732542683523,43.776884,248.83,248.67,18.58912487]
[1732542684208,7.0331,248.82,248.76,18.58912487]
[1732542684528,2.0094,248.82,248.78,18.58912487]
[1732542685241,2.0094,248.82,248.77,18.58912487]
[1732542685524,2.0094,248.82,248.75,18.58912487]
[1732542686126,20.0,248.85,248.75,18.58912487]
[1732542686313,20.0,248.83,248.75,18.58912487]
[1732542687026,20.0,248.84,248.75,18.58912487]
[1732542687228,20.0,248.84,248.77,18.58912487]
[1732542687620,7.0317,248.87,248.77,18.58912487]
[1732542687818,7.0317,248.87,248.73,0.60278669]
[1732542687819,2.009,248.87,248.82,18.58912487]
[1732542688139,2.009,248.87,248.84,18.58912487]
[1732542690132,2.009,248.87,248.8,0.60264234]
[1732542690307,2.009,248.87,248.76,18.58912487]
[1732542690512,7.0317,248.87,248.76,18.58912487]
[1732542691316,20.0,248.84,248.74,18.58912487]
[1732542691632,20.0,248.84,248.72,18.58912487]
[1732542692036,20.0,248.84,248.74,18.58912487]
[1732542692331,2.0094,248.83,248.74,18.58912487]
[1732542692544,2.0094,248.83,248.7,4.0208]
[1732542692545,2.0094,248.83,248.75,19.19193312]
[1732542692705,2.0094,248.83,248.75,18.58912487]
[1732542693125,2.0094,248.83,248.78,18.58912487]
[1732542693437,2.0094,248.83,248.79,18.58912487]
[1732542693607,2.009,248.87,248.8,18.58912487]
[1732542693804,2.009,248.87,248.81,18.58912487]
[1732542694116,2.009,248.87,248.8,18.58912487]
[1732542694318,2.009,248.87,248.72,23.776884]
[1732542694319,2.009,248.87,248.77,18.58912487]
[1732542694620,2.009,248.87,248.78,18.58912487]
[1732542695126,7.0317,248.87,248.77,18.58912487]
[1732542696420,7.0317,248.87,248.78,18.58912487]
[1732542696822,7.0317,248.87,248.79,18.58912487]
[1732542697041,2.009,248.87,248.81,18.58912487]
[1732542698216,2.009,248.87,248.78,18.58912487]
[1732542698415,7.0317,248.87,248.78,18.58912487]
[1732542698615,7.0317,248.87,248.79,18.58912487]
[1732542698816,7.0317,248.87,248.74,0.60273648]
[1732542698817,2.009,248.87,248.8,18.58912487]
[1732542699334,2.009,248.87,248.79,18.58912487]
[1732542700513,2.009,248.87,248.8,18.58912487]
[1732542703233,2.009,248.87,248.78,18.58912487]
[1732542703940,7.0317,248.87,248.74,18.58912487]
[1732542704731,23.776884,248.86,248.74,18.58912487]
[1732542704941,2.0092,248.85,248.74,18.58912487]
[1732542706331,2.0092,248.85,248.75,18.58912487]
[1732542707537,7.0317,248.87,248.75,18.58912487]
[1732542707731,7.0317,248.87,248.73,4.0203]
[1732542707732,7.0317,248.87,248.74,18.58912487]
[1732542707937,7.0317,248.87,248.77,18.58912487]
[1732542708137,7.0317,248.87,248.78,18.58912487]
[1732542708327,7.0317,248.87,248.79,18.58912487]
[1732542708665,7.0317,248.87,248.73,4.62311001]
[1732542708666,2.0079,249.01,248.86,37.17824974]
[1732542708942,2.0079,249.01,248.94,18.58912487]
[1732542709315,7.0277,249.01,248.88,18.58912487]
[1732542709533,5.0198,249.01,248.87,18.58912487]
[1732542710230,20.0,248.98,248.87,18.58912487]
[1732542710618,2.0082,248.97,248.88,18.58912487]
[1732542710817,2.0082,248.97,248.91,18.58912487]
[1732542711524,5.0198,249.01,248.91,18.58912487]
[1732542711720,5.0198,249.01,248.9,18.58912487]
[1732542712638,20.0,248.98,248.88,18.58912487]
[1732542713144,20.0,248.98,248.89,18.58912487]
[1732542713338,20.0,248.98,248.9,18.58912487]
[1732542713517,20.0,248.98,248.91,18.58912487]
[1732542714547,20.0,248.98,248.92,18.58912487]
[1732542714837,2.0081,248.99,248.93,18.58912487]
[1732542715249,2.0081,248.99,248.95,18.58912487]
[1732542715420,2.0077,249.03,248.97,18.58912487]
[1732542716333,2.0077,249.03,248.96,18.58912487]
[1732542718934,2.0077,249.03,248.97,18.58912487]
[1732542719764,2.0077,249.03,248.89,4.0178]
[1732542719975,7.0271,249.03,248.9,18.58912487]
[1732542720291,20.0,249.0,248.9,18.58912487]
[1732542720638,21.1449,249.11,248.99,18.58912487]
[1732542720861,23.152,249.11,249.02,18.58912487]
[1732542722047,23.152,249.11,249.0,18.58912487]
[1732542722242,23.152,249.11,248.98,18.58912487]
[1732542722437,23.776884,249.1,248.96,18.58912487]
[1732542722841,20.0,249.07,248.98,18.58912487]
[1732542723037,23.152,249.11,249.0,18.58912487]
[1732542723364,23.152,249.11,249.02,18.58912487]
[1732542724442,6.332,249.13,249.06,18.58912487]
[1732542724443,2.007,249.13,249.06,18.58912487]
[1732542724766,2.007,249.13,249.04,18.58912487]
[1732542724942,2.007,249.13,249.02,18.58912487]
[1732542725635,20.0,249.12,249.02,18.58912487]
[1732542726661,2.0071,249.11,249.02,18.58912487]
[1732542727038,2.0071,249.11,249.05,18.58912487]
[1732542727261,20.0,249.14,249.06,18.58912487]
[1732542727873,20.0,249.14,249.05,18.58912487]
[1732542728445,2.0069,249.13,249.05,18.58912487]
[1732542729870,2.0069,249.13,249.01,18.58912487]
[1732542730047,20.0,249.1,248.99,18.58912487]
[1732542730254,20.0,249.06,248.96,18.58912487]
[1732542730565,2.0076,249.05,248.96,18.58912487]
[1732542730935,2.0076,249.05,248.95,18.58912487]
[1732542731142,2.0076,249.05,248.91,4.0174]
[1732542731143,20.0,249.04,248.94,18.58912487]
[1732542731944,2.0076,249.05,248.9,18.58912487]
[1732542731945,20.0,249.02,248.9,18.58912487]
[1732542732368,20.0,249.02,248.94,18.58912487]
[1732542732667,2.0079,249.01,248.95,18.58912487]
[1732542732867,20.0,249.06,248.96,18.58912487]
[1732542733072,20.0,249.06,248.95,18.58912487]
[1732542733247,20.0,249.06,248.94,18.58912487]
[1732542733561,20.0,249.02,248.92,18.58912487]
[1732542733770,20.0,249.02,248.91,18.58912487]
[1732542733969,15.6317,249.01,248.9,18.58912487]
[1732542734344,2.008,249.0,248.91,18.58912487]
[1732542734768,2.008,249.0,248.89,18.58912487]
[1732542735069,7.028,249.0,248.89,18.58912487]
[1732542735569,7.028,249.0,248.9,18.58912487]
[1732542735750,7.028,249.0,248.91,18.58912487]
[1732542736271,15.6317,249.01,248.95,18.58912487]
[1732542736460,15.6317,249.01,248.97,18.58912487]
[1732542736664,2.0076,249.06,249.0,18.58912487]
[1732542736857,15.3232,249.07,249.03,18.58912487]
[1732542737166,5.0176,249.13,249.06,18.58912487]
[1732542737167,2.0071,249.12,249.06,18.58912487]
[1732542738547,2.0071,249.12,249.04,18.58912487]
[1732542739356,16.6429,249.13,249.03,20.0]
[1732542739668,24.7393,249.21,249.1,18.58912487]
[1732542740167,18.1664,249.21,249.12,18.58912487]
[1732542740850,23.1822,249.21,249.1,18.58912487]
[1732542741058,23.1822,249.21,249.08,18.58912487]
[1732542741476,23.1822,249.21,248.99,0.60200937]
[1732542741477,20.0,249.18,249.06,18.58912487]
[1732542742554,7.0221,249.21,249.12,18.58912487]
[1732542742851,7.0221,249.21,249.11,18.58912487]
[1732542743770,20.0,249.23,249.11,18.58912487]
[1732542744280,20.0,249.23,249.13,18.58912487]
[1732542744863,2.0062,249.22,249.13,18.58912487]
[1732542745855,2.0062,249.22,249.12,18.58912487]
[1732542747482,7.0184,249.34,249.18,18.58912487]
[1732542747783,18.61347208,249.34,249.18,18.58912487]
[1732542748380,18.61347208,249.34,249.18,11.57516034]
[1732542749155,20.0,249.31,249.18,11.57516034]
[1732542749950,23.776884,249.3,249.18,11.57516034]
[1732542750262,23.776884,249.26,249.12,11.57516034]
[1732542750580,23.776884,249.26,249.1,11.57516034]
[1732542750581,20.0,249.22,249.1,11.57516034]
[1732542751379,2.0063,249.21,249.1,11.57516034]
[1732542751572,20.0,249.17,249.08,11.57516034]
[1732542752259,20.0,249.17,249.07,18.53681877]
[1732542752667,2.0067,249.16,249.07,18.53681877]
[1732542752877,2.0067,249.16,249.04,18.53681877]
[1732542753082,2.0067,249.16,249.05,18.53681877]
[1732542753256,2.0067,249.16,249.06,18.53681877]
[1732542753458,2.0067,249.16,249.08,18.53681877]
[1732542753860,2.0067,249.16,249.1,18.53681877]
[1732542754068,2.0065,249.19,249.12,18.53681877]
[1732542754276,2.0065,249.19,249.14,18.53681877]
[1732542754501,2.0065,249.19,249.13,18.53681877]
[1732542754799,23.776884,249.23,249.13,18.53681877]
[1732542754983,23.776884,249.23,249.12,18.53681877]
[1732542756091,2.0062,249.22,249.12,18.53681877]
[1732542757084,2.0062,249.22,249.09,4.0145]
[1732542757085,2.0062,249.22,249.15,18.53681877]
[1732542757976,2.0062,249.22,249.1,0.6019739]
[1732542757977,2.006,249.24,249.18,18.53681877]
[1732542758180,2.0056,249.3,249.21,18.53681877]
[1732542758383,2.0056,249.3,249.2,18.53681877]